Cogmind - Beta 11 @@@ ROGUE MODE // 2022.03.22 @ 10:31:36 Player: Shrewd Result: Self-destructed Performance ------------- Evolutions (1) 500 Regions Visited (3) 600 Robots Destroyed (18) 90 Value Destroyed (264) 264 Prototype IDs (5) 100 Alien Tech Used (0) 0 Bonus (7) 7 TOTAL SCORE: 1561 Bonus ------- Follower Combat Kills 7 Cogmind --------- Core Integrity 364/400 Matter 300/300 Energy 275/275 System Corruption 0% Temperature Cool (0) Movement Walking (126) Location -9/Materials Parts ------- > --- POWER (1) -------- Deuterium Engine > --- PROPULSION (3) --- Aluminum Leg Carbon-fiber Leg Makeshift Leg > --- UTILITY (3) ------ Medium Storage Unit Experimental Sensor Array Improved Signal Interpreter > --- WEAPON (2) ------- Medium Laser Small Laser > --- INVENTORY (10) --- Deuterium Engine Deuterium Engine Deuterium Engine Aluminum Leg Aluminum Leg Compact Wheel Improved Heat Sink Improved Signal Interpreter Assault Rifle Grenade Launcher Peak State ------------ > --- POWER ------------ Light Angular Momentum Engine > --- PROPULSION ------- Aluminum Leg Carbon-fiber Leg Makeshift Leg > --- UTILITY ---------- Improved Heat Sink Medium Storage Unit Experimental Sensor Array > --- WEAPON ----------- Medium Laser Small Laser > --- INVENTORY -------- Ion Engine Ion Engine Aluminum Leg Aluminum Leg Aluminum Leg Compact Wheel Improved Signal Interpreter Assault Rifle Grenade Launcher [Rating: 29] Favorites ----------- Power Light Angular Momentum Engine Engine Light Angular Momentum Engine Propulsion Aluminum Leg Leg Aluminum Leg Utility Medium Storage Unit Device Experimental Sensor Array Storage Medium Storage Unit Processor Improved Signal Interpreter Weapon Medium Laser Energy Gun Medium Laser Launcher Grenade Launcher Build | -11 -10 -10 -9 ------- Run | Scr Mat Min Mat Slots Evolved 2 | . . . 2 Power . | . . . . Propulsion 1 | . . . 1 Utility 1 | . . . 1 Weapon . | . . . . Parts Attached 15 | . 5 5 5 Power 3 | . 1 1 1 Engine 3 | . 1 1 1 Core . | . . . . Reactor . | . . . . Propulsion 5 | . 1 2 2 Treads . | . . . . Leg 5 | . 1 2 2 Wheel . | . . . . Hover . | . . . . Flight . | . . . . Utility 5 | . 2 1 2 Device 2 | . . 1 1 Storage 1 | . 1 . . Processor 2 | . 1 . 1 Hackware . | . . . . Protection . | . . . . Artifact . | . . . . Weapon 2 | . 1 1 . Energy Gun 1 | . . 1 . Energy Cannon . | . . . . Ballistic Gun . | . . . . Ballistic Cannon . | . . . . Launcher 1 | . 1 . . Special Weapon . | . . . . Impact Weapon . | . . . . Slashing Weapon . | . . . . Piercing Weapon . | . . . . Special Melee Weapon . | . . . . Unidentified Prototypes 1 | . . 1 . Parts Lost . | . . . . Power . | . . . . Propulsion . | . . . . Utility . | . . . . Weapon . | . . . . Highest Loss Streak . | . . . . To Critical Strikes . | . . . . Average Slot Usage (%) 98 | . 90 100 100 Engine 12 | . 14 14 11 Leg 29 | . 28 28 33 Device 11 | . . 11 13 Storage 12 | . 14 14 11 Processor 4 | . 5 2 8 Energy Gun 24 | . 21 27 22 Launcher 1 | . 7 . . Naked Turns . | . . . . Heaviest Build 24 | 13 20 23 24 Greatest Support 45 | 20 20 35 45 Greatest Overweight (x) . | . . . . Average Overweight (x) . | . . . . Largest Inventory Capacity 10 | 8 10 10 10 Average Capacity 9 | 8 8 10 10 Most Carried 10 | 6 10 10 10 Average Carried 9 | 6 7 9 9 Final Capacity 10 | 8 10 10 10 Final Carried 10 | 6 10 10 10 Class Distribution -------------------- 91% | Mutant 8% | Scavenger-Mutant Dominant Class ---------------- Mutant | -10/Materials Mutant | -10/Mines Mutant | -9/Materials Resources | -11 -10 -10 -9 ----------- Run | Scr Mat Min Mat Matter Collected 386 | 200 18 118 50 Remotely . | . . . . Salvage Created 247 | . 95 50 102 Parts 29 | . 14 7 8 Haulers Intercepted . | . . . . Recyclers Shooed . | . . . . Parts Field Recycled . | . . . . Retrieved Matter . | . . . . Parts Self-Destructed . | . . . . Prevented . | . . . . Kills | -11 -10 -10 -9 ------- Run | Scr Mat Min Mat Combat Hostiles Destroyed 17 | . 7 6 4 Guns 13 | . 5 4 4 AOE 4 | . 2 2 . Classes Destroyed 4 | . 2 1 1 Watcher 1 | . 1 . . Swarmer 15 | . 7 5 3 Sentry 1 | . . . 1 Demolisher 1 | . . 1 . Best Kill Streak 5 | . 5 3 2 Combat Bots Only 4 | . 4 3 2 Max Kills in Single Turn 3 | . 3 2 1 Gunslinging . | . . . . Exploded 2 | . 2 2 . Melee . | . . . . Uniques/NPCs Destroyed . | . . . . Combat | -11 -10 -10 -9 -------- Run | Scr Mat Min Mat Damage Taken 408 | . 80 182 146 Core 67 | . 14 17 36 Absorbed by Shields . | . . . . Core Remaining (%) 93 | 100 . 87 . Volleys Fired 31 | . 11 11 9 Largest 2 | . 2 2 2 Hottest 90 | . 90 90 90 Shots Fired 58 | . 20 20 18 Gun 54 | . 17 19 18 Cannon . | . . . . Launcher 4 | . 3 1 . Special . | . . . . Kinetic . | . . . . Thermal 54 | . 17 19 18 Explosive 4 | . 3 1 . Electromagnetic . | . . . . Robot Hit Streak 8 | . 4 8 7 Robot Miss Streak 4 | . 3 4 2 Penetration Max . | . . . . Secondary Targets . | . . . . Shots Hit Robots 34 | . 11 11 12 Core Hits 21 | . 10 6 5 Critical Kills . | . . . . Critical Parts Destroyed . | . . . . Critical Strikes 7 | . 1 2 4 Burn 7 | . 1 2 4 Melee Attacks . | . . . . Impact . | . . . . Slashing . | . . . . Piercing . | . . . . Sneak Attacks . | . . . . Combat Hostiles . | . . . . Follow-up Attacks . | . . . . Damage Inflicted 696 | . 298 247 151 Guns 369 | . 108 119 142 Cannons . | . . . . Explosions 301 | . 173 128 . Melee . | . . . . Ramming 26 | . 17 . 9 Kinetic . | . . . . Thermal 369 | . 108 119 142 Explosive 301 | . 173 128 . Electromagnetic . | . . . . Impact . | . . . . Slashing . | . . . . Piercing . | . . . . Highest Corruption . | . . . . Average Corruption . | . . . . Corruption Purged . | . . . . Corruption Blocked . | . . . . Overload Shots . | . . . . Overflow Damage . | . . . . Projectiles . | . . . . Explosions . | . . . . Melee . | . . . . Knockbacks . | . . . . Impact . | . . . . Kinetic . | . . . . Secondary . | . . . . Self-Inflicted Damage 20 | . 3 17 . Shots 2 | . 1 1 . Rammed . | . . . . Targets Rammed 3 | . 1 . 2 Kicked 3 | . 1 . 2 Crushed . | . . . . Highest Temperature 192 | . 180 192 48 Average Temperature 65 | . 68 80 23 Received Heat Transfer 27 | . . . 27 Siege Activations . | . . . . Robots Corrupted . | . . . . Combat Hostiles . | . . . . Parts Fried . | . . . . Impact Corruptions . | . . . . Robots Melted . | . . . . Combat Hostiles . | . . . . Parts Melted 4 | . 1 . 3 Heat Transferred 1509 | . 359 470 680 Parts Sabotaged . | . . . . Parts Stolen . | . . . . Parts Stripped . | . . . . Power Chain Reactions . | . . . . Missiles Intercepted . | . . . . Alert | -11 -10 -10 -9 ------- Run | Scr Mat Min Mat Peak Influence 251 | . 228 251 120 Initial 88 | . . 88 . Average 94 | . 110 128 47 Maximum Alert Level 1 | . 1 1 . Low Security (%) 82 | 100 58 75 100 Level 1 17 | . 41 24 . Level 2 . | . . . . Level 3 . | . . . . Level 4 . | . . . . Level 5 . | . . . . High Security . | . . . . Max Security . | . . . . Squads Dispatched 3 | . 1 . 2 Investigation 1 | . . . 1 Extermination . | . . . . Reinforcement 2 | . 1 . 1 Assault . | . . . . Garrison . | . . . . Intercept . | . . . . Searches Triggered . | . . . . Construction Impeded . | . . . . Haulers Reinforced . | . . . . Active Scanning Responses . | . . . . Cargo Convoy Interrupts . | . . . . Stealth | -11 -10 -10 -9 --------- Run | Scr Mat Min Mat Distress Signals 3 | . 1 . 2 Communications Jammed . | . . . . Distress Signals . | . . . . Times Spotted 18 | . 9 4 5 Peak Tracking Total 4 | . 3 3 4 Tactical Retreats 1 | . . . 1 Traps | -11 -10 -10 -9 ------- Run | Scr Mat Min Mat Traps Triggered 1 | . . . 1 Indirectly . | . . . . Trap Hack Attempts . | . . . . Triggered . | . . . . Disarmed . | . . . . Reprogrammed . | . . . . Reused . | . . . . Traps Extracted . | . . . . Installed . | . . . . Triggered . | . . . . Machines | -11 -10 -10 -9 ---------- Run | Scr Mat Min Mat Machines Disabled . | . . . . Max in Single Turn . | . . . . Machines Sabotaged . | . . . . Garrisons Compromised . | . . . . Overloaded Fab Kills . | . . . . Hacking | -11 -10 -10 -9 --------- Run | Scr Mat Min Mat Machines Accessed 6 | . 3 1 2 Terminals 6 | . 3 1 2 Fabricators . | . . . . Repair Stations . | . . . . Recycling Units . | . . . . Scanalyzers . | . . . . Garrison Access . | . . . . Total Hacks 12 | . 5 4 3 Successful 9 | . 4 2 3 Failed 3 | . 1 2 . Catastrophic 1 | . 1 . . Database Lockouts . | . . . . Manual . | . . . . Terminals 12 | . 5 4 3 Fabricators . | . . . . Repair Stations . | . . . . Recycling Units . | . . . . Scanalyzers . | . . . . Garrison Access . | . . . . Terminal Hacks 9 | . 4 2 3 Prototype ID Bank 2 | . . . 2 Level Access Points 2 | . 1 1 . Emergency Access Points 1 | . 1 . . Dispatch Records 1 | . . . 1 Hauler Manifests 1 | . 1 . . Zone Layout 2 | . 1 1 . Fabricator Hacks . | . . . . Repair Station Hacks . | . . . . Recycling Unit Hacks . | . . . . Scanalyzer . | . . . . Garrison Access Hacks . | . . . . Unauthorized Hacks . | . . . . Terminals . | . . . . Fabricators . | . . . . Repair Stations . | . . . . Recycling Units . | . . . . Scanalyzers . | . . . . Garrison Access . | . . . . Data Cores Recovered . | . . . . Used . | . . . . Hacking Detections 4 | . 2 1 1 Full Trace Events . | . . . . Feedback Events . | . . . . Feedback Blocked . | . . . . Robot Schematics Acquired . | . . . . Robots Built . | . . . . Authchips . | . . . . Time . | . . . . Total Robot Build Rating . | . . . . Part Schematics Acquired . | . . . . Parts Built . | . . . . Authchips . | . . . . Time . | . . . . Total Part Build Rating . | . . . . Parts Repaired . | . . . . Time . | . . . . Parts Recycled . | . . . . Recycled Matter . | . . . . Retrieved Matter . | . . . . Retrieved Components . | . . . . Parts Scanalyzed . | . . . . Part Schematics Acquired . | . . . . Parts Damaged . | . . . . Bothacking | -11 -10 -10 -9 ------------ Run | Scr Mat Min Mat Used RIF Installer . | . . . . Robots Hacked . | . . . . Non-combat . | . . . . Combat . | . . . . Robot Hacks Applied . | . . . . Relay Couplers Released . | . . . . Fabnet Peak Effective % . | . . . . Robots Rewired . | . . . . Allies Hacked . | . . . . Hacks Repelled . | . . . . Allies | -11 -10 -10 -9 -------- Run | Scr Mat Min Mat Total Allies 2 | . . 2 . Largest Group 2 | . . 2 . Highest-Rated Group 42 | . . 42 . Highest-Rated Ally 31 | . . 31 . Total Orders . | . . . . Ally Attacks 5 | . . 5 . Total Damage 64 | . . 64 . Kills 1 | . . 1 . Allies Corrupted . | . . . . Allies Melted . | . . . . Intel | -11 -10 -10 -9 ------- Run | Scr Mat Min Mat Robot Analysis Total . | . . . . Derelict Logs Recovered 1 | . . 1 . Drone Launches . | . . . . Drone Recoveries . | . . . . Exploration | -11 -10 -10 -9 ------------- Run | Scr Mat Min Mat Turns Passed 1859 | 3 256 885 715 Spaces Moved 1230 | 3 173 661 393 Core . | . . . . Treads . | . . . . Legs 1230 | 3 173 661 393 Wheels . | . . . . Hover . | . . . . Flight . | . . . . Fastest Speed 120 | 120 120 120 126 Average Speed 125 | 120 120 127 126 Slowest Speed 130 | 120 120 130 126 Overloaded Moves . | . . . . Propulsion Burnouts . | . . . . Robots Hopped . | . . . . Cave-ins Triggered . | . . . . Exploration Rate (%) 42 | 2 43 96 27 Regions Visited 3 Branch Regions 1 Pre-discovered Areas . | . . . . Known Exits Taken 2 | . 1 1 . Unknown Exits Taken 1 | 1 . . . Scrap Searched 1 | . . 1 . Spaces Dug . | . . . . Terrain Destroyed 14 | . 6 8 . Melee . | . . . . Projectile . | . . . . AOE 14 | . 6 8 . Terrain Rammed . | . . . . Walls Destroyed . | . . . . Machines Disabled . | . . . . Actions | -11 -10 -10 -9 --------- Run | Scr Mat Min Mat Total 1486 | 2 202 688 594 Wait 178 | . 2 . 176 Move 1227 | 2 172 660 393 Hop . | . . . . Pick Up 15 | . 6 4 5 Fast Attach 5 | . 1 3 1 Attach 2 | . . . 2 Detach 1 | . . 1 . Swap 8 | . 4 2 2 Drop 16 | . 5 7 4 Fire 31 | . 11 11 9 Melee . | . . . . Ram . | . . . . Kick 3 | . 1 . 2 Crush . | . . . . Escape Stasis . | . . . . Rewire . | . . . . Trap . | . . . . Miscellaneous . | . . . . Route ------- -11/Scrapyard -10/Materials (discovered 4 exits: Mat x3 / *Min) -10/Mines (discovered 2 exits: *Mat x2) -9/Materials (discovered 1 exit: *Mat) History --------- Turn | Location | Event 1 | -11/Scrapyard | Discovered new exit (range 1) 4 | -11/Scrapyard | Entered Materials 205 | -10/Materials | Identified exit to Materials 248 | -10/Materials | Discovered new exit (range 6) 252 | -10/Materials | Identified exit to Mines 260 | -10/Materials | Entered Mines 316 | -10/Mines | Build established: Mutant 339 | -10/Mines | Learned Materials stockpile data 371 | -10/Mines | Assembled infested the area 390 | -10/Mines | Found a damaged Exp. Sensor Array with a note attached 393 | -10/Mines | Found Prototype Device 393 | -10/Mines | Identified Exp. Sensor Array 1145 | -10/Mines | Entered Materials 1145 | -9/Materials | Evolved 2 slots: Propulsion x1, Utility x1 1750 | -9/Materials | Discovered new exit (range 11) 1761 | -9/Materials | Identified exit to Materials 1860 | -9/Materials | Self-destructed Last Messages --------------- 01761_ EXIT=IDENTIFIED: MATERIALS 01793_ K-01 Serf cleans the Terminal. 01806_ Kicked K-01 Serf. 01817_ Connecting with Terminal... >>Prototypes Downloading prototype IDs... Adv. Beam Cannon Aerolev Unit >>Enumerate(Squads) Retrieving dispatch records... Found 18 active squads: 8x Security 4x Surveillance 2x Patrol 4x Transport 01827_ Connecting with Terminal... >>Prototypes Downloading prototype IDs... Adv. EMP Blaster Prc. Beam Rifle Map ----- +----------------------------------------------------+ | ???????????/ ???????????????????# ##??????? | | ???????????# #?????????????###+## #??????? | | ???????????# #?????????????# ^ = #??????? | | ???????????# #?????????????# ##?????? | | ???????????# #?????????????# T#?????? | | ???????????# #?????????????# ^!! #??????? | | ???????????# ############### !!! #??????? | | ???????????# k !!! #??????? | | ???????????# #??????? | | ???????????# w #??????? | | ???????##### ################+#### #??????? | | ???????# #????????????# #? ??????????? | | ???????# < #????????????#* #? ??????????? | | ???????# #????????????# " #? ??????????? | | ????######## #????????????# """ #? ??????????? | | ????# # #????????????# """ #? ??????????? | | ????# """ # #????????????# """*#? ??????????? | | ????# """ + #????????????# "" %## #?????????? | | ????# """ # #????????????# """ ## #?????????? | | ????# # #????????????# "" ## #???????### | | ????# * # #????????????# """ ## #???????# | | ????########## #????????????# " ## #???????# | | ?????????????# #????????????# * ## #???????# | | ?????????????# #???#############/### #???????# | | ?????????????# #???# #??#%###a###?????# | | ?????????????# #???# @""" #??# #?????# " | | ??????Y??????# #???# """ ########## #?????# " | | ?????????????#%#???# """ ## ## ##????# " | | ?????????????# #???# ## # ######## | | ?????????????# #???# """ ## + | | ??????????t??# #???# """ ## # ######## | | ?????????????# #???# """ ## ## ##??????? | | ?????????????# #???# ## ## #???????? | | ????????????## ###?#####+############# #???????? | | ???????###k##u ##### #??????????# #???????? | | ???????r #??????????# #???????? | | ???????# T k T #???######## ######### | | ???????##m### ##### #???# ## | | ????????#???## ##???## ###???# ## | | ?????????????# #?????# #?????# ## | | ?????????????# #######+###???# ## | | ?????????????# # #####+## ## | | ?????????????# # # # ## | | ?????????????# # = # # ######## | | ?????????????# #o # """ + #??????? | | ?????????????/ + # """ # #??????? | | ?????????????# # # """ # #??????? | | ?????????????# # # # #??????? | | ?????????????#### ######## #??????? | | ?????????????##################### #####??? | +----------------------------------------------------+ Best States ------------- Heat Dissipation 42 Energy Generation 18 Energy Capacity 275 Matter Stores 300 Matter Capacity 300 Sight Range 16 Robot Scan Range 20 Terrain Scan Density 10 Evasion (%) 55 Item Schematics ----------------- None Robot Schematics ------------------ None Fabricated ------------ Nothing Alien Tech Used ----------------- None Achievements -------------- None Challenges ------------ None Game ------ Seed ArchitectCompositeBay Manual? 0 Play Time 00:14:22 Cumulative 13.4 hours Start 2022.03.22 @ 09:16:57 End 2022.03.22 @ 10:31:36 Sessions 5 Manual Loads 0 Difficulty Rogue Special Mode None Game No. 22 Rogue 22 Adventurer 0 Explorer 0 Win Type - Total 0 Types 0/0/0/0/0/0/0/0/0 Lore% 22 Gallery% 28 Achievement% 24 Wizard Run 0 Options --------- ASCII 0 Keyboard 1 Movement Numpad Keybinds 0 Fullscreen 1 Font 18/SmallcapsGlow Map View 76x50 Tactical HUD 1 Map Filters NONE Filters NONE Steam 1 RUN: e9418d97-5265-4e67-a81d-7bafb1111f9a